bitfinex/quotes_ETHUSD_20241207
["timestamp","ask_amount","ask_price","bid_price","bid_amount"]
[1733535262170,36.3845511,3990.0,3989.2,0.8881]
[1733535262336,36.3845511,3990.0,3989.2,3.0]
[1733535262545,36.3845511,3990.0,3989.4,0.8881]
[1733535264471,36.3845511,3990.0,3989.5,2.39387364]
[1733535264649,36.3845511,3990.0,3989.6,0.8881]
[1733535264845,36.3845511,3990.0,3989.6,3.8881]
[1733535265743,36.3845511,3990.0,3989.7,0.8881]
[1733535265952,36.3845511,3990.0,3989.9,0.8881]
[1733535266569,35.7544311,3990.0,3989.9,0.8881]
[1733535266743,35.5443911,3990.0,3989.9,0.8881]
[1733535267367,35.5443911,3990.0,3989.9,1.04132583]
[1733535275271,35.5443911,3990.0,3989.9,0.15322583]
[1733535275500,35.5443911,3990.0,3989.9,0.34814232]
[1733535275800,35.5443911,3990.0,3989.2,3.0]
[1733535275801,35.5443911,3990.0,3989.2,0.8422]
[1733535276480,0.8442,3989.9,3988.9,0.15382316]
[1733535276684,0.8442,3989.9,3988.8,0.8422]
[1733535276875,0.8442,3989.9,3988.8,3.8422]
[1733535277221,0.8442,3989.9,3988.8,3.99245253]
[1733535277629,0.8442,3989.9,3988.8,0.15025253]
[1733535277894,0.8442,3989.9,3988.4,0.8422]
[1733535277895,5.7584,3989.9,3988.4,0.8422]
[1733535278403,5.7584,3989.9,3988.4,0.98955988]
[1733535279324,5.7584,3989.9,3988.4,3.98955988]
[1733535281221,0.8442,3989.7,3989.2,3.0]
[1733535281419,4.94553055,3989.8,3987.7,0.8422]
[1733535281420,0.8442,3989.5,3987.7,0.8422]
[1733535281576,0.8442,3989.4,3987.7,0.8422]
[1733535281920,0.8442,3989.3,3987.7,0.8422]
[1733535282078,0.8442,3989.3,3987.8,0.32360736]
[1733535283596,0.8442,3989.3,3987.9,2.39387364]
[1733535283781,0.8442,3989.3,3987.9,5.39387364]
[1733535284571,0.8442,3989.3,3988.0,0.1]
[1733535284797,0.8442,3989.3,3988.4,3.8422]
[1733535285016,0.8442,3989.3,3988.5,0.45133224]
[1733535286123,4.9142,3989.9,3988.5,0.45133224]
[1733535286124,0.8442,3989.8,3988.5,0.45133224]
[1733535286491,0.8442,3989.8,3988.5,0.59896687]
[1733535288991,0.8442,3989.8,3988.5,0.45133224]
[1733535289190,0.8442,3989.8,3988.3,2.39387364]
[1733535290624,0.9361,3989.6,3988.2,0.15007612]
[1733535290841,0.9361,3989.6,3988.0,3.1]
[1733535290986,0.9361,3989.6,3988.0,0.1]
[1733535291332,0.9361,3989.6,3988.0,3.25084473]
[1733535294018,0.9361,3989.6,3988.3,2.39387364]
[1733535294200,0.9361,3989.6,3988.7,2.39387364]
[1733535295201,0.9361,3989.9,3988.7,2.39387364]
[1733535296429,0.9361,3989.9,3989.1,2.39387364]
[1733535297690,35.5443911,3990.0,3989.2,3.9318]
[1733535298615,35.5443911,3990.0,3989.2,3.0]
[1733535298818,35.5443911,3990.0,3989.1,0.14901735]
[1733535298819,0.9361,3989.9,3989.1,0.14901735]
[1733535299001,0.9361,3989.9,3988.7,0.9318]
[1733535300519,0.9361,3989.9,3988.8,0.52647]
[1733535300729,0.9361,3989.9,3989.8,0.17544]
[1733535302326,35.5443911,3990.0,3989.9,0.17544]
[1733535303147,0.9361,3989.9,3989.2,0.17547]
[1733535303359,0.9361,3989.9,3989.7,0.17544]
[1733535304010,0.9361,3989.9,3989.0,3.14378984]
[1733535304011,0.9361,3989.9,3989.8,0.17544]
[1733535304777,35.5443911,3990.0,3989.9,0.17544]
[1733535306614,35.5443911,3990.0,3989.9,0.31929298]
[1733535307025,33.0381311,3990.0,3989.9,0.31929298]
[1733535307223,33.0381311,3990.0,3989.9,0.60815364]
[1733535308357,26.7724811,3990.0,3989.9,0.60815364]
[1733535308578,25.3904811,3990.0,3989.9,0.60815364]
[1733535309147,26.3071811,3990.0,3989.9,0.46430066]
[1733535309472,26.3071811,3990.0,3989.9,0.17544]
[1733535310486,20.3779611,3990.0,3989.9,3.17544]
[1733535310975,19.1248311,3990.0,3989.9,3.17544]
[1733535311140,14.1123111,3990.0,3989.9,3.17544]
[1733535311486,12.8591811,3990.0,3989.9,3.17544]
[1733535311654,12.8591811,3990.0,3989.9,3.32011371]
[1733535312141,10.3529211,3990.0,3989.9,3.32011371]
[1733535312337,6.5935311,3990.0,3989.9,3.32011371]
[1733535312947,6.29408571,3990.0,3989.9,3.32011371]
[1733535313156,5.88115571,3990.0,3989.9,3.32011371]
[1733535313462,4.35875572,3990.0,3989.9,3.32011371]
[1733535313782,3.97815572,3990.0,3989.9,3.32011371]
[1733535314983,3.95920885,3990.0,3989.9,3.32011371]
[1733535315137,3.44660885,3990.0,3989.9,3.32011371]
[1733535315537,2.93080885,3990.0,3989.9,3.32011371]
[1733535320462,2.93080885,3990.0,3989.9,3.14467371]
[1733535320665,3.84750885,3990.0,3989.9,3.0]
[1733535320863,3.84750885,3990.0,3989.8,2.39387364]
[1733535321062,3.84750885,3990.0,3989.4,2.53811662]
[1733535321265,3.84750885,3990.0,3989.4,2.39387364]
[1733535321601,3.84750885,3990.0,3989.4,2.723711]
[1733535322279,3.84750885,3990.0,3989.5,3.0]
[1733535324056,3.84449231,3990.0,3989.5,3.0]
[1733535324473,3.84449231,3990.0,3989.4,0.32983736]
[1733535324714,3.84449231,3990.0,3989.3,3.0]
[1733535328091,0.8829,3989.9,3988.8,2.39387364]
[1733535328296,0.8829,3989.9,3988.9,3.0]
[1733535330636,0.8829,3989.9,3988.8,0.14857255]
[1733535330928,0.8673,3989.7,3988.6,0.14479923]
[1733535331148,0.8673,3989.7,3988.1,2.39295358]
[1733535331646,0.8673,3989.7,3988.5,2.39295358]
[1733535332150,0.8673,3989.7,3988.9,2.39295358]
[1733535332365,0.03978658,3989.6,3989.0,3.23929536]
[1733535332844,0.8673,3989.7,3989.0,3.23929536]
[1733535333841,0.8673,3989.7,3989.3,2.39295358]
[1733535334161,2.92779231,3990.0,3989.3,2.39295358]
[1733535334321,2.92779231,3990.0,3989.7,2.39295358]
[1733535334521,2.92779231,3990.0,3989.8,3.23929536]
[1733535335920,0.04080273,3989.9,3989.8,3.23929536]
[1733535336420,0.04080273,3989.9,3989.8,0.23929536]
[1733535336656,0.04080273,3989.9,3989.4,3.0]
[1733535336840,0.04080273,3989.9,3989.3,2.39295358]
[1733535337039,2.92779231,3990.0,3989.4,3.0]
[1733535337378,0.8673,3989.9,3989.1,3.0]
[1733535337661,0.8673,3989.9,3989.0,3.38688926]
[1733535337867,0.8673,3989.9,3989.0,3.1475939]
[1733535338224,0.8673,3989.9,3989.3,2.39295358]
[1733535338449,0.8673,3989.9,3989.3,5.39295358]
[1733535338847,0.8673,3989.9,3989.4,3.0]
[1733535339047,0.8673,3989.9,3989.3,5.39295358]
[1733535340249,0.8673,3989.9,3989.3,2.39295358]
[1733535347291,0.8673,3989.9,3989.1,3.0]
[1733535347480,0.8673,3989.9,3989.2,2.39295358]
[1733535347677,0.0407292,3989.8,3989.2,2.39295358]
[1733535347881,0.8673,3989.9,3989.2,2.39295358]
[1733535348085,0.8673,3989.9,3989.3,3.0]
[1733535348914,0.8673,3989.9,3989.2,2.39295358]
[1733535349576,2.92779231,3990.0,3989.6,2.39295358]
[1733535349999,0.04076513,3989.9,3989.6,2.39295358]
[1733535351596,2.92779231,3990.0,3989.6,2.39295358]
[1733535351597,1.41978023,3990.0,3989.7,3.0]
[1733535351798,0.45794341,3990.0,3989.7,3.0]
[1733535351970,0.03810148,3989.9,3989.7,3.0]
[1733535352606,0.12794859,3990.0,3989.7,3.0]
[1733535355421,0.12794859,3990.0,3989.8,2.39295358]
[1733535356617,0.9163,3989.9,3989.8,2.39295358]
[1733535356977,0.95452574,3989.9,3989.8,2.39295358]
[1733535357889,0.9163,3989.9,3989.8,2.39295358]
[1733535359377,0.9163,3989.9,3989.8,5.63224894]
[1733535360094,0.12794859,3990.0,3989.9,3.0]
[1733535360290,0.84583794,3990.2,3990.1,0.17543]
[1733535361507,1.03931269,3991.5,3990.1,0.17543]
[1733535361823,2.21903946,3991.4,3990.1,0.17543]
[1733535361995,1.67674778,3991.3,3990.1,0.17543]
[1733535362195,0.03132378,3991.2,3990.1,0.17543]
[1733535362527,0.07019578,3991.2,3990.5,0.17541]
[1733535362926,0.07019581,3991.2,3989.9,3.14502403]
[1733535363084,0.038872,3991.2,3990.3,0.17542]
[1733535363426,1.10584399,3991.1,3990.3,0.17542]
[1733535363918,0.9163,3990.9,3990.1,0.17543]
[1733535364077,0.94762534,3990.8,3990.1,0.17543]
[1733535364278,0.95493873,3990.8,3990.1,0.17543]
[1733535365055,0.95493873,3990.8,3989.4,2.53635894]
[1733535365056,0.95493873,3990.8,3989.4,2.39295358]
[1733535365257,0.9163,3990.6,3989.8,0.17544]
[1733535365410,0.94762755,3990.5,3989.8,0.17544]
[1733535365614,0.98609205,3990.5,3989.4,2.39295358]
[1733535365926,0.9547645,3990.5,3990.0,0.17543]
[1733535366552,0.9547645,3990.5,3989.4,2.39295358]
[1733535366854,0.9547645,3990.5,3990.1,0.17543]
[1733535367548,0.9547645,3990.5,3989.6,0.17545]
[1733535367845,0.9547645,3990.5,3990.4,0.17542]
[1733535368055,0.9547645,3990.5,3989.9,3.17544]
[1733535368056,0.9547645,3990.5,3989.9,3.0]
[1733535368213,0.9547645,3990.5,3990.2,0.17542]
[1733535368416,0.9163,3990.5,3990.2,0.17542]
[1733535368649,0.03132457,3991.2,3990.0,0.17543]
[1733535368650,0.03132459,3991.2,3990.0,0.17543]
[1733535368874,0.9358,3990.3,3990.0,0.17543]
[1733535370672,0.9358,3990.3,3989.8,0.35088]
[1733535370846,0.9358,3990.3,3989.9,0.35088]
[1733535371049,0.03854176,3990.2,3989.9,0.35088]
[1733535371278,0.9358,3990.3,3989.9,0.35088]
[1733535371563,0.03854176,3990.2,3989.9,0.35088]
[1733535371730,0.9358,3990.3,3989.9,0.35088]
[1733535372132,0.0385042,3990.2,3989.9,0.35088]
[1733535372337,0.03132773,3990.2,3989.6,0.3509]
[1733535373565,0.9358,3990.3,3989.7,0.3509]
[1733535373879,0.0385273,3990.2,3989.7,0.3509]
[1733535374246,0.9358,3990.3,3989.7,0.3509]
[1733535375350,0.0384666,3990.2,3989.7,0.3509]
[1733535375735,0.9358,3990.3,3989.7,0.3509]
[1733535375937,0.03845793,3990.2,3989.7,0.3509]
[1733535376171,0.03845793,3990.2,3989.5,0.35092]
[1733535376373,0.9358,3990.3,3990.2,0.35085]
[1733535376873,0.97430832,3990.3,3990.2,0.35085]
[1733535378660,0.03850832,3990.3,3990.2,0.35085]
[1733535379046,0.9358,3990.6,3989.9,2.34793908]
[1733535379342,0.9358,3990.6,3990.5,0.35083]
[1733535381849,0.9358,3990.6,3990.3,0.35084]
[1733535382060,0.9358,3990.6,3990.1,3.0]
[1733535382373,0.9358,3990.6,3990.1,0.35086]
[1733535382748,0.03874493,3990.5,3990.1,0.35086]
[1733535384663,0.03874493,3990.5,3989.7,3.0]
[1733535384865,0.03874493,3990.5,3989.7,3.35089]
[1733535385102,0.03874493,3990.5,3989.7,3.0]
[1733535385391,0.03874493,3990.5,3989.6,2.49220304]
[1733535385593,0.03874493,3990.5,3990.4,0.35084]
[1733535386399,0.9358,3990.6,3990.5,0.35083]
[1733535386585,0.9358,3990.6,3990.2,0.35085]
[1733535386586,0.9358,3991.3,3990.2,0.35085]
[1733535386780,0.03132301,3991.2,3990.7,0.35081]
[1733535387998,1.97664369,3991.3,3990.8,0.35079]
[1733535388172,0.86061299,3991.2,3990.8,0.35079]
[1733535388371,0.03132264,3991.1,3990.8,0.35079]
[1733535388790,0.9358,3991.3,3990.1,3.1418428]
[1733535388973,0.8920034,3991.2,3990.8,0.35079]
[1733535389181,0.8920034,3991.2,3990.3,0.35084]
[1733535389182,0.03132175,3991.2,3990.2,0.35085]
[1733535389355,0.9358,3991.3,3990.9,0.35079]
[1733535389779,0.03917556,3991.2,3991.1,0.35078]
[1733535389991,0.9358,3991.3,3991.1,0.35078]
[1733535390184,0.03917556,3991.2,3990.9,0.35079]
[1733535390518,0.9358,3991.3,3991.0,0.35078]
[1733535390660,0.0391252,3991.1,3991.0,0.35078]
[1733535391011,0.9358,3991.3,3991.0,0.35078]
[1733535391371,0.03920733,3991.2,3991.0,0.35078]
[1733535391686,0.9358,3991.3,3991.1,0.35078]
[1733535392192,0.9358,3991.3,3990.8,0.3508]
[1733535392397,0.9358,3991.3,3990.7,0.35081]
[1733535392585,0.9358,3991.3,3990.8,0.34951751]
[1733535393593,0.03921889,3991.2,3990.8,0.34951751]
[1733535393999,4.9142,3991.7,3991.6,0.35073]
[1733535394209,5.8522,3991.7,3991.6,0.35073]
[1733535394408,0.938,3991.7,3991.4,0.35075]
[1733535394567,5.8522,3991.7,3991.5,0.35073]
[1733535395062,4.9142,3991.1,3989.5,0.9027]
[1733535395258,0.938,3990.9,3990.1,0.35086]
[1733535395468,0.938,3990.9,3990.2,0.35085]
[1733535396308,0.938,3990.7,3990.2,0.35085]
[1733535396614,0.938,3990.7,3989.3,0.14483183]
[1733535396615,5.8522,3990.5,3989.5,0.35092]
[1733535396984,0.0388564,3990.4,3989.6,0.35091]
[1733535397305,0.0388564,3990.4,3989.8,0.35088]
[1733535397806,0.96933075,3990.3,3989.0,0.35096]
[1733535398014,0.938,3990.1,3988.8,2.34782455]
[1733535398189,0.96933648,3990.1,3989.2,0.35094]
[1733535398374,0.938,3989.9,3989.2,0.35094]
[1733535398574,0.0382737,3989.8,3989.2,0.35094]
[1733535399122,0.0382737,3989.8,3988.9,3.1]
[1733535399288,0.0382737,3989.8,3989.3,0.35093]
[1733535399488,0.0382737,3989.8,3989.3,3.35093]
[1733535399724,0.938,3989.9,3989.0,0.35095]
[1733535400093,0.03813783,3989.8,3989.0,0.35095]
[1733535400420,0.0694743,3989.8,3989.0,0.35095]
[1733535400622,0.03813783,3989.8,3989.0,0.35095]
[1733535400935,0.938,3989.6,3988.9,0.1]
[1733535401432,0.03796349,3989.5,3988.9,3.1]
[1733535401605,0.03796349,3989.5,3988.9,0.1]
[1733535401931,0.03796349,3989.5,3989.1,0.35095]
[1733535402578,0.938,3989.6,3989.1,0.35095]
[1733535402690,0.03786392,3989.4,3989.2,0.35094]
[1733535403023,0.938,3989.6,3989.2,0.35094]
[1733535404027,0.938,3989.6,3988.9,0.45097]
[1733535404190,0.938,3989.6,3988.9,3.1]
[1733535404386,0.938,3989.6,3989.1,0.35095]
[1733535405328,0.938,3989.6,3988.9,3.45097]
[1733535405626,0.938,3988.6,3987.3,0.35111]
[1733535405929,1.75497,3988.7,3987.4,0.3511]
[1733535405930,0.938,3988.4,3987.4,0.3511]
[1733535406134,0.938,3988.2,3987.4,0.3511]
[1733535406335,0.03134865,3988.1,3987.4,0.3511]
[1733535406538,0.06836622,3988.1,3987.4,0.3511]
[1733535406840,0.938,3988.0,3987.4,0.3511]
[1733535407004,0.03134866,3987.9,3987.4,0.3511]
[1733535407206,0.06812365,3987.9,3987.4,0.3511]
[1733535407510,0.06812365,3987.9,3987.4,2.34782455]
[1733535407511,0.03677499,3987.9,3987.4,2.34782455]
[1733535407713,0.03677499,3987.9,3987.8,3.25052455]
[1733535407926,4.99e-06,3987.9,3987.8,3.25052455]
[1733535408125,0.938,3989.0,3988.9,0.35097]
[1733535408348,4.9142,3989.7,3988.9,0.35097]
[1733535408547,0.938,3989.6,3988.8,3.0]
[1733535408717,0.97286085,3989.6,3989.2,0.35094]
[1733535409438,0.97286085,3989.6,3989.4,0.35092]
[1733535409809,0.03133355,3989.5,3989.4,0.35092]
[1733535410007,0.06633495,3989.5,3989.4,0.35092]
[1733535410404,0.06633495,3989.5,3988.5,0.8658]
[1733535410405,0.8598,3989.4,3988.5,0.351]
[1733535410605,0.65040451,3989.3,3988.7,0.35098]
[1733535410801,0.61906423,3989.3,3987.9,3.0]
[1733535411033,0.03503073,3989.3,3988.8,0.35098]
[1733535411638,0.06637022,3989.3,3988.5,0.351]
[1733535412142,0.06637022,3989.3,3988.6,0.351]
[1733535412448,0.03503073,3989.3,3988.8,0.35098]
[1733535412607,0.03503073,3989.3,3988.9,0.35097]
[1733535413550,0.06637014,3989.3,3988.7,0.35099]
[1733535413911,0.06637014,3989.3,3988.4,0.35101]
[1733535414330,0.03503073,3989.3,3988.3,2.34782455]
[1733535414536,0.03503073,3989.3,3989.2,0.35094]
[1733535414744,0.8598,3989.4,3989.3,0.35093]
[1733535415118,4.9142,3989.9,3989.3,0.35093]
[1733535415119,0.9126,3989.8,3989.3,0.35093]
[1733535415442,4.9142,3989.9,3989.8,0.35089]
[1733535417258,0.9126,3990.2,3990.1,0.35086]
[1733535418408,0.9126,3990.7,3990.3,0.35084]
[1733535418647,1.49528,3990.7,3990.3,0.35084]
[1733535419335,0.03589692,3990.6,3990.3,0.35084]
[1733535420554,0.03589692,3990.6,3990.0,0.35087]
[1733535420714,0.06722707,3990.6,3989.7,0.3509]
[1733535420910,0.9126,3990.5,3989.2,3.35094]
[1733535421211,5.8268,3990.3,3989.5,0.35091]
[1733535421426,0.06708063,3990.2,3989.6,0.35091]
[1733535421820,0.9126,3990.1,3989.3,0.35093]
[1733535422020,0.9126,3989.9,3988.9,0.35097]
[1733535422237,4.9142,3989.7,3988.6,0.35099]
[1733535422445,5.8268,3989.5,3988.7,0.35099]
[1733535422638,4.94553954,3989.4,3988.0,0.9291]
[1733535422836,4.94945462,3989.4,3989.0,0.35096]
[1733535423033,0.03525462,3989.4,3989.3,0.35093]
[1733535423549,0.8816,3989.9,3989.7,0.3509]
[1733535424059,0.8816,3989.9,3989.7,0.35089]
[1733535424269,0.8816,3989.9,3989.8,0.35089]
[1733535424425,5.7958,3990.3,3990.1,0.35086]
[1733535424825,0.8816,3990.3,3990.1,0.35086]
[1733535426361,0.8816,3990.3,3990.2,0.35085]
[1733535426656,2.03971514,3991.4,3990.6,0.35082]
[1733535426657,0.8816,3990.9,3990.6,0.35082]
[1733535427177,0.8816,3990.9,3990.7,0.3508]
[1733535427341,0.8816,3990.9,3990.8,0.3508]
[1733535427529,0.8816,3990.9,3990.2,0.35085]
[1733535427730,0.03132561,3990.8,3990.1,0.35086]
[1733535428045,0.03132561,3990.8,3990.0,3.0]
[1733535428241,0.03132561,3990.8,3990.3,0.35084]
[1733535428542,0.8816,3990.9,3990.6,0.35082]
[1733535430041,0.03629841,3990.8,3990.6,0.35082]
[1733535430240,0.03629841,3990.8,3989.6,3.8598]
[1733535430554,0.06762593,3990.8,3990.3,0.35085]
[1733535432375,0.03629841,3990.8,3989.9,2.34782455]
[1733535432534,0.03629841,3990.8,3990.6,0.35082]
[1733535432876,0.03629841,3990.8,3990.7,0.35081]
[1733535434354,0.03629841,3990.8,3990.7,5.69863455]
[1733535434760,0.03132557,3991.2,3990.9,0.35079]
[1733535435481,1.93955868,3991.4,3991.2,0.35076]
[1733535435642,1.93955868,3991.4,3991.3,0.35076]
[1733535436150,1.93955868,3991.4,3989.5,0.8851]
[1733535436151,0.9344,3991.1,3989.5,0.8851]
[1733535436461,0.96572752,3991.1,3990.0,0.35087]
[1733535436635,0.58799275,3991.0,3990.1,0.35086]
[1733535436831,0.0313299,3990.9,3990.1,0.35086]
[1733535437060,0.0313299,3990.9,3989.8,2.34782455]
[1733535437268,0.03661925,3990.8,3990.5,0.35083]
[1733535437450,0.03661925,3990.8,3990.2,2.34782455]
[1733535437451,0.03661925,3990.8,3990.6,0.35082]
[1733535437660,0.9344,3991.1,3990.6,0.35082]
[1733535437856,1.61977587,3991.1,3990.6,0.35082]
[1733535438249,0.9344,3991.1,3990.3,3.8851]
[1733535438446,0.9344,3991.1,3990.4,0.35084]
[1733535438672,0.9344,3991.1,3990.9,0.35079]
[1733535438968,0.9344,3991.1,3990.4,0.35084]
[1733535438969,0.9344,3991.1,3990.7,0.35081]
[1733535439171,0.03132464,3991.0,3990.7,0.35081]
[1733535439558,0.9344,3991.1,3990.7,0.35081]
[1733535440338,0.9344,3991.1,3990.3,3.8851]
[1733535440538,0.9344,3991.1,3990.5,0.35083]
[1733535440839,0.9344,3991.1,3990.2,2.34782455]
[1733535440840,0.06794216,3991.0,3990.2,0.35085]
[1733535441362,0.03661594,3991.0,3990.2,0.35085]
[1733535441750,4.95081594,3991.0,3989.8,3.37161782]
[1733535442075,0.0313295,3990.9,3989.9,3.0]
[1733535442274,0.03656557,3990.9,3990.1,0.35086]
[1733535442483,0.65736741,3990.8,3990.1,0.35086]
[1733535442691,0.69388261,3990.8,3990.1,0.35086]
[1733535443555,0.952,3990.7,3989.9,3.0]
[1733535443783,0.952,3990.7,3989.8,2.34782455]
[1733535443784,0.952,3990.4,3989.6,0.35091]
[1733535444088,5.8662,3990.2,3989.3,0.35093]
[1733535444277,5.8662,3990.0,3988.8,0.13957018]
[1733535444574,0.03133857,3989.9,3989.0,0.35095]
[1733535444775,0.06732805,3989.9,3989.0,0.35095]
[1733535446968,0.06732805,3989.9,3988.8,3.0]
[1733535447159,0.06732805,3989.9,3989.0,0.35096]
[1733535447357,0.72001832,3989.9,3989.0,0.35096]
[1733535447967,0.72001832,3989.9,3988.7,2.34782455]
[1733535448302,4.9142,3989.8,3988.7,5.34782455]
[1733535448586,4.9142,3989.8,3989.2,0.35094]
[1733535448774,0.03557065,3989.7,3989.2,0.35094]
[1733535449267,4.9142,3989.8,3989.2,0.35094]
[1733535449778,0.03557065,3989.7,3989.2,0.35094]
[1733535450187,4.9142,3989.8,3989.2,0.35094]
[1733535450549,0.03557065,3989.7,3989.2,0.35094]
[1733535450873,4.9142,3989.8,3989.1,2.34782455]
[1733535451059,4.9142,3989.8,3989.5,0.35092]
[1733535451394,0.03557065,3989.7,3989.5,0.35092]
[1733535451687,0.952,3990.0,3989.5,0.35092]
[1733535452086,0.03571774,3989.9,3989.5,0.35092]
[1733535452612,0.952,3990.0,3989.6,0.3509]
[1733535452886,0.03554138,3989.9,3989.6,0.3509]
[1733535453685,0.03554138,3989.9,3989.2,3.23478246]
[1733535453686,0.03554138,3989.9,3989.8,0.35089]
[1733535453887,0.03554138,3989.9,3989.8,0.62076145]
[1733535454072,0.8736,3990.3,3990.1,0.35086]
[1733535454662,4.9142,3990.5,3990.2,0.35085]
[1733535455475,0.03598416,3990.4,3990.2,0.35085]
[1733535456550,0.03598416,3990.4,3990.3,0.35085]
[1733535457603,0.8736,3990.6,3990.3,0.35085]
[1733535457763,0.03601016,3990.4,3990.3,0.35085]
[1733535457964,0.8736,3990.6,3989.8,1.27808]
[1733535458180,0.8736,3990.9,3990.5,0.35083]
[1733535458384,4.9142,3990.7,3989.7,0.3509]
[1733535458686,0.8736,3990.5,3989.9,0.35088]
[1733535458944,0.8736,3990.5,3990.2,0.35085]
[1733535459227,0.03614026,3990.4,3990.2,0.35085]
[1733535460220,0.06747006,3990.4,3990.0,0.35087]
[1733535460396,0.03614026,3990.4,3990.0,0.35087]
[1733535460590,0.06747074,3990.4,3990.0,0.35087]
[1733535461707,0.03614026,3990.4,3989.8,0.35089]
[1733535462578,0.03614026,3990.4,3989.2,3.0]
[1733535462785,0.03614026,3990.4,3989.9,0.35088]
[1733535463285,0.03614026,3990.4,3989.2,3.0]
[1733535463515,0.03614026,3990.4,3990.0,0.35087]
[1733535463821,0.03614026,3990.4,3989.9,3.27502455]
[1733535464121,3.60362681,3991.4,3989.9,3.27502455]
[1733535464122,0.8736,3990.9,3990.5,0.35082]
[1733535464328,0.8736,3990.9,3990.6,0.35082]
[1733535464626,0.8736,3990.9,3990.7,0.35081]
[1733535465419,0.8736,3990.9,3990.0,3.0]
[1733535465420,0.8736,3990.9,3990.8,0.3508]
[1733535465720,4.9142,3991.1,3990.8,0.3508]
[1733535465721,5.7878,3991.1,3990.8,0.3508]
[1733535466597,5.7878,3991.1,3990.0,3.0]
[1733535466598,5.7878,3991.1,3990.9,0.35079]
[1733535466799,5.7878,3991.1,3991.0,0.35078]
[1733535466988,4.9142,3991.1,3991.0,0.35078]
[1733535469407,0.8736,3991.6,3991.2,0.35077]
[1733535469608,1.58715781,3991.6,3990.8,3.0]
[1733535469804,0.9436,3991.5,3990.7,0.35081]
[1733535470106,0.9436,3991.3,3990.7,0.35081]
[1733535470294,0.03132692,3991.2,3990.7,0.35081]
[1733535470494,0.06824013,3991.2,3990.7,0.35081]
[1733535471011,4.95111321,3991.2,3990.9,0.35079]
[1733535473698,4.95111321,3991.2,3990.6,0.35081]
[1733535473908,5.57191071,3991.2,3990.6,0.35081]
[1733535474099,5.54058453,3991.2,3990.6,0.35081]
[1733535474301,0.03132721,3991.1,3990.6,0.35081]
[1733535474502,5.54058453,3991.2,3990.0,4.07382746]
[1733535474807,0.03676623,3991.0,3990.7,0.35081]
[1733535475026,0.03671586,3990.9,3990.7,0.35081]
[1733535475209,4.9142,3991.2,3990.7,0.35081]
[1733535475406,4.9510166,3991.1,3990.7,0.35081]
[1733535475934,4.9510166,3991.1,3990.9,0.35079]
[1733535476334,0.0368166,3991.1,3991.0,0.35078]
[1733535476713,0.9436,3991.3,3991.0,0.35078]
[1733535477232,0.03686986,3991.2,3990.7,0.938]
[1733535477544,4.9142,3991.5,3990.7,0.938]
[1733535477838,0.0368195,3991.1,3990.8,0.3508]
[1733535478041,4.9142,3991.5,3991.1,0.35077]
[1733535478236,0.03697058,3991.4,3991.1,0.35077]
[1733535480033,0.03697058,3991.4,3990.7,0.938]
[1733535480204,0.03697058,3991.4,3991.3,0.35076]
[1733535480710,0.03697058,3991.4,3991.1,0.35078]
[1733535480928,0.0313232,3991.3,3991.1,0.35078]
[1733535481412,0.03692188,3991.2,3991.1,3.35078]
[1733535481939,0.9436,3991.6,3991.2,0.35076]
[1733535482250,0.03132321,3991.5,3990.7,0.938]
[1733535482397,0.03132321,3991.5,3991.2,0.35076]
[1733535484233,0.03132321,3991.5,3991.0,0.35078]
[1733535484903,0.03132321,3991.5,3990.7,0.938]
[1733535485104,0.03132321,3991.5,3991.1,0.35077]
[1733535485936,0.97492325,3991.6,3991.3,0.35076]
[1733535486122,0.9436,3991.6,3991.3,0.35076]
[1733535486303,0.9436,3991.6,3990.7,0.938]
[1733535486624,0.9436,3991.6,3991.3,0.35075]
[1733535486937,0.9436,3991.6,3991.4,0.35075]
[1733535487505,5.8578,3991.9,3991.4,0.35075]
[1733535487740,6.55016788,3991.9,3991.4,0.35075]
[1733535490515,0.03132236,3991.8,3991.4,0.35075]
[1733535491354,0.03132236,3991.8,3990.9,0.35079]
[1733535491512,0.03132236,3991.8,3991.2,0.35077]
[1733535491713,0.03132236,3991.8,3991.4,0.35075]
[1733535492035,6.55016788,3991.9,3991.4,0.35075]
[1733535492757,6.55016788,3991.9,3991.2,0.35077]
[1733535493353,5.8644,3991.7,3990.9,3.0]
[1733535493519,5.8644,3991.7,3990.4,0.8683]
[1733535493520,0.03132338,3991.6,3990.4,0.8683]
[1733535493704,0.03132338,3991.6,3990.9,0.35079]
[1733535493904,0.03132338,3991.6,3991.0,0.35078]
[1733535494333,0.03132338,3991.6,3990.5,0.35083]
[1733535494334,4.94552502,3991.6,3991.2,0.35076]
[1733535494543,4.94552502,3991.6,3990.5,3.13626595]
[1733535494841,4.9142,3991.6,3991.3,0.35076]
[1733535496214,4.94552253,3991.6,3990.5,3.0]
[1733535496418,5.77381794,3991.5,3990.8,0.3508]
[1733535496618,0.03132534,3991.4,3990.8,0.3508]
[1733535496851,0.03132534,3991.4,3991.0,0.35078]
[1733535497053,5.8644,3991.3,3990.6,0.35082]
[1733535497214,0.03132731,3991.2,3990.5,0.35083]
[1733535497766,0.03132731,3991.2,3990.2,0.35085]
[1733535498067,0.03132731,3991.2,3989.9,0.35088]
[1733535498068,0.9502,3991.0,3990.3,0.35084]
[1733535498232,0.03685457,3990.9,3990.3,0.35084]
[1733535498561,0.03685457,3990.9,3990.6,0.35082]
[1733535498866,0.03685457,3990.9,3990.8,0.3508]
[1733535499063,5.8644,3991.3,3990.8,0.3508]
[1733535499364,0.06820081,3991.2,3990.8,0.3508]
[1733535499675,0.03687565,3991.2,3990.5,0.35083]
[1733535499962,0.9502,3991.1,3990.5,0.35083]
[1733535500203,0.03132818,3991.0,3990.5,0.35083]
[1733535500470,0.06807998,3991.0,3990.5,0.35083]
[1733535500669,0.20528364,3990.9,3990.5,0.35083]
[1733535500818,0.03665106,3990.8,3990.5,0.35083]
[1733535501166,0.03665106,3990.8,3990.4,0.35084]
[1733535501363,0.03665106,3990.8,3990.0,0.35087]